fUST/lending_fUST_20250206
["ID","MTS","AMOUNT","RATE_DAILY","PERIOD"]
[351855625,1738822079870,-156.226317,0.00014109,2]
[351855626,1738822079902,-1931.42,0.00014109,2]
[351855627,1738822079933,-2202.72,0.00014109,2]
[351855628,1738822079964,-1018.89,0.00014109,2]
[351855629,1738822079995,-1566.05,0.00014109,2]
[351855630,1738822080028,-561.73,0.00014109,2]
[351855631,1738822080060,-513.75,0.00014109,2]
[351855632,1738822080091,-500.0,0.00014109,2]
[351855633,1738822080122,-1881.69,0.00014109,2]
[351855634,1738822080145,-605.36,0.00014109,2]
[351855635,1738822080168,-5123.3,0.00014109,2]
[351855636,1738822080191,-725.61,0.00014109,2]
[351855637,1738822080214,-927.78,0.00014109,2]
[351855638,1738822080237,-1271.07,0.00014109,2]
[351855639,1738822080259,-500.0,0.00014109,2]
[351855640,1738822080282,-1862.54,0.00014109,2]
[351855641,1738822080304,-740.24,0.00014109,2]
[351855642,1738822080326,-77490.92,0.00014109,2]
[351855643,1738822080349,-1350.03,0.00014109,2]
[351855644,1738822080371,-10825.23,0.00014109,2]
[351855645,1738822080393,-1282.71,0.00014109,2]
[351855646,1738822080686,-500.0,0.00014109,2]
[351855647,1738822080735,-500.0,0.00014109,2]
[351855648,1738822080758,-3871.55,0.00014109,2]
[351855649,1738822080781,-882.38,0.00014109,2]
[351855650,1738822080803,-632.56,0.00014109,2]
[351855651,1738822080825,-500.0,0.00014109,2]
[351855652,1738822080851,-500.0,0.00014109,2]
[351855653,1738822080872,-500.0,0.00014109,2]
[351855654,1738822080897,-1289.03,0.00014109,2]
[351855655,1738822080921,-2302.96,0.00014109,2]
[351855656,1738822080944,-151.0,0.00014109,2]
[351855657,1738822080965,-151.0,0.00014109,2]
[351855658,1738822080988,-500.0,0.00014109,2]
[351855659,1738822081012,-609.62,0.00014109,2]
[351855660,1738822081035,-500.0,0.00014109,2]
[351855661,1738822081057,-863.89,0.00014109,2]
[351855662,1738822081080,-500.0,0.00014109,2]
[351855663,1738822081106,-500.0,0.00014109,2]
[351855664,1738822081127,-500.0,0.00014109,2]
[351855665,1738822081149,-500.0,0.00014109,2]
[351855666,1738822081172,-500.0,0.00014109,2]
[351855667,1738822081194,-1298.58,0.00014109,2]
[351855668,1738822081217,-500.0,0.00014109,2]
[351855669,1738822081239,-1102.01,0.00014109,2]
[351855670,1738822081261,-791.49,0.00014109,2]
[351855671,1738822081282,-500.0,0.00014109,2]
[351855672,1738822081304,-549.43,0.00014109,2]
[351855673,1738822081326,-501.99,0.00014109,2]
[351855674,1738822081350,-500.0,0.00014109,2]
[351855675,1738822081373,-6308.61,0.00014109,2]
[351855676,1738822081395,-172.032232,0.00014109,2]
[351855677,1738822081417,-500.0,0.00014109,2]
[351855678,1738822081438,-172.032232,0.00014109,2]
[351855679,1738822081461,-8269.95,0.00014109,2]
[351855680,1738822081483,-500.0,0.00014109,2]
[351855681,1738822081504,-3411.99,0.00014109,2]
[351855682,1738822081526,-500.0,0.00014109,2]
[351855683,1738822081548,-27098.26,0.00014109,2]
[351855684,1738822081570,-749.3,0.00014109,2]
[351855685,1738822081592,-2587.41,0.00014109,2]
[351855686,1738822081615,-2174.68,0.00014109,2]
[351855687,1738822081636,-151.0,0.00014109,2]
[351855688,1738822081658,-500.0,0.00014109,2]
[351855689,1738822081679,-197.009496,0.00014109,2]
[351855690,1738822081701,-197.009496,0.00014109,2]
[351855691,1738822081724,-900.15,0.00014109,2]
[351855692,1738822081746,-197.009496,0.00014109,2]
[351855693,1738822081773,-197.009496,0.00014109,2]
[351855694,1738822081795,-500.0,0.00014109,2]
[351855695,1738822081816,-500.0,0.00014109,2]
[351855696,1738822081838,-500.0,0.00014109,2]
[351855697,1738822081864,-817.5,0.00014109,2]
[351855698,1738822081887,-689.49,0.00014109,2]
[351855699,1738822081909,-500.0,0.00014109,2]
[351855700,1738822081933,-2071.89,0.00014109,2]
[351855701,1738822081955,-500.0,0.00014109,2]
[351855702,1738822081977,-2225.74,0.00014109,2]
[351855703,1738822081999,-2453.54,0.00014109,2]
[351855704,1738822082021,-1317.24,0.00014109,2]
[351855705,1738822082043,-670.63,0.00014109,2]
[351855706,1738822082065,-500.0,0.00014109,2]
[351855707,1738822082088,-500.0,0.00014109,2]
[351855708,1738822082112,-740.08,0.00014109,2]
[351855709,1738822082135,-3501.62,0.00014109,2]
[351855710,1738822082157,-509.17,0.00014109,2]
[351855711,1738822082180,-500.0,0.00014109,2]
[351855712,1738822082203,-651.59,0.00014109,2]
[351855713,1738822082226,-500.0,0.00014109,2]
[351855714,1738822082249,-218.04473,0.00014109,2]
[351855715,1738822082271,-500.0,0.00014109,2]
[351855716,1738822082293,-425.36597183,0.00014109,2]
[351855717,1738822082317,-218.04473,0.00014109,2]
[351855718,1738822082339,-6536.28,0.00014109,2]
[351855719,1738822082362,-913.67,0.00014109,2]
[351855720,1738822082384,-500.0,0.00014109,2]
[351855721,1738822082406,-500.0,0.00014109,2]
[351855722,1738822082429,-4003.24,0.00014109,2]
[351855723,1738822082451,-504.55466536,0.00014109,2]
[351855724,1738822082473,-990.46,0.00014109,2]
[351855725,1738822082494,-151.0,0.00014109,2]
[351855726,1738822082515,-151.0,0.00014109,2]
[351855727,1738822082539,-151.0,0.00014109,2]
[351855728,1738822082560,-151.0,0.00014109,2]
[351855729,1738822082581,-151.0,0.00014109,2]
[351855730,1738822082604,-151.0,0.00014109,2]
[351855731,1738822082626,-206.959826,0.00014109,2]
[351855732,1738822082647,-151.0,0.00014109,2]
[351855733,1738822082669,-151.0,0.00014109,2]
[351855734,1738822082692,-279.682743,0.00014109,2]
[351855735,1738822082717,-2124.74,0.00014109,2]
[351855736,1738822082740,-4141.69,0.00014109,2]
[351855737,1738822082763,-151.0,0.00014109,2]
[351855738,1738822082784,-151.0,0.00014109,2]
[351855739,1738822082806,-151.0,0.00014109,2]
[351855740,1738822082829,-1037.13,0.00014109,2]
[351855741,1738822082856,-500.0,0.00014109,2]
[351855742,1738822082878,-151.0,0.00014109,2]
[351855743,1738822082901,-1160.64,0.00014109,2]
[351855744,1738822082924,-151.0,0.00014109,2]
[351855745,1738822082947,-2000.0,0.000142,2]
[351855746,1738822082969,-621.70952141,0.00014221,2]
[351855747,1738822082990,-150.08,0.00014246,2]
[351855748,1738822083012,-500.0,0.00014246,2]
[351855749,1738822083041,-500.97915157,0.00014246,2]
[351855750,1738822083063,-150.08,0.00014246,2]
[351855751,1738822083085,-150.08,0.00014246,2]
[351855752,1738822083108,-150.08,0.00014246,2]
[351855753,1738822083129,-150.08,0.00014246,2]
[351855754,1738822083151,-150.08,0.00014246,2]
[351855755,1738822083177,-150.08,0.00014246,2]
[351855756,1738822083200,-150.08,0.00014246,2]
[351855757,1738822083223,-907.0,0.00014246,2]
[351855758,1738822083245,-500.0,0.00014246,2]
[351855759,1738822083268,-500.74310955,0.00014246,2]
[351855760,1738822083292,-500.0,0.00014246,2]
[351855761,1738822083446,-500.0,0.00014246,2]
[351855762,1738822083470,-553.76790137,0.00014246,2]
[351855763,1738822083497,-1109.9,0.00014246,2]
[351855764,1738822083520,-500.0,0.00014246,2]
[351855765,1738822083542,-213.379078,0.00014246,2]
[351855766,1738822083565,-500.0,0.00014246,2]
[351855767,1738822083586,-500.0,0.00014246,2]
[351855768,1738822083608,-500.0,0.00014246,2]
[351855769,1738822083630,-500.0,0.00014246,2]
[351855770,1738822083652,-500.0,0.00014246,2]
[351855771,1738822083675,-588.76,0.00014246,2]
[351855772,1738822083698,-500.0,0.00014246,2]
[351855773,1738822083720,-606.27,0.00014246,2]
[351855774,1738822083743,-500.0,0.00014246,2]
[351855775,1738822083766,-500.0,0.00014246,2]
[351855776,1738822083788,-500.0,0.00014246,2]
[351855777,1738822083811,-849.0,0.00014246,2]
[351855778,1738822083833,-500.0,0.00014246,2]
[351855779,1738822083861,-500.0,0.00014246,2]
[351855780,1738822083883,-500.0,0.00014246,2]
[351855781,1738822083909,-1095.5,0.00014246,2]
[351855782,1738822083932,-871.28,0.00014246,2]
[351855783,1738822083955,-711.69,0.00014246,2]
[351855784,1738822083977,-500.0,0.00014246,2]
[351855785,1738822084000,-500.0,0.00014246,2]
[351855786,1738822084023,-500.0,0.00014246,2]
[351855787,1738822084045,-500.0,0.00014246,2]
[351855788,1738822084066,-522.91,0.00014246,2]
[351855789,1738822084088,-592.13,0.00014246,2]
[351855790,1738822084109,-500.0,0.00014246,2]
[351855791,1738822084131,-513.98,0.00014246,2]
[351855792,1738822084153,-151.0,0.00014246,2]
[351855793,1738822084176,-500.0,0.00014246,2]
[351855794,1738822084197,-500.0,0.00014246,2]
[351855795,1738822084218,-500.0,0.00014246,2]
[351855796,1738822084240,-513.21,0.00014246,2]
[351855797,1738822084261,-581.43,0.00014246,2]
[351855798,1738822084283,-666.88,0.00014246,2]
[351855799,1738822084304,-151.0,0.00014246,2]
[351855800,1738822084326,-884.66,0.00014246,2]
[351855801,1738822084347,-449.72302827,0.00014246,2]
[351855802,1738822084368,-1233.9,0.00014246,2]
[351855803,1738822084389,-151.0,0.00014246,2]
[351855804,1738822084422,-151.0,0.00014246,2]
[351855805,1738822084443,-500.0,0.00014246,2]
[351855806,1738822084464,-629.07,0.00014246,2]
[351855807,1738822084486,-851.34,0.00014246,2]
[351855808,1738822084507,-583.65,0.00014246,2]
[351855809,1738822084530,-500.0,0.00014246,2]
[351855810,1738822084552,-500.0,0.00014246,2]
[351855811,1738822084574,-500.0,0.00014246,2]
[351855812,1738822084597,-563.95,0.00014246,2]
[351855813,1738822084620,-500.0,0.00014246,2]
[351855814,1738822084643,-500.0,0.00014246,2]
[351855815,1738822084665,-500.0,0.00014246,2]
[351855816,1738822084686,-500.0,0.00014246,2]
[351855817,1738822084708,-500.0,0.00014246,2]
[351855818,1738822084729,-500.0,0.00014246,2]
[351855819,1738822084751,-500.0,0.00014246,2]
[351855820,1738822084772,-151.0,0.00014246,2]
[351855821,1738822084793,-151.0,0.00014246,2]
[351855822,1738822084814,-500.0,0.00014246,2]
[351855823,1738822084835,-500.0,0.00014246,2]
[351855824,1738822084862,-605.28,0.00014246,2]
[351855825,1738822084882,-500.0,0.00014246,2]
[351855826,1738822084904,-500.0,0.00014246,2]
[351855827,1738822084925,-500.0,0.00014246,2]
[351855828,1738822084948,-500.0,0.00014246,2]
[351855829,1738822084969,-500.0,0.00014246,2]
[351855830,1738822084994,-927.14,0.00014246,2]
[351855831,1738822085015,-570.19,0.00014246,2]
[351855832,1738822085036,-883.74,0.00014246,2]
[351855833,1738822085058,-500.0,0.00014246,2]
[351855834,1738822085080,-768.5,0.00014246,2]
[351855835,1738822085101,-636.61,0.00014246,2]
[351855836,1738822085123,-500.0,0.00014246,2]
[351855837,1738822085145,-710.94,0.00014246,2]
[351855838,1738822085167,-676.5,0.00014246,2]
[351855839,1738822085189,-513.11074289,0.00014246,2]
[351855840,1738822085211,-500.0,0.00014246,2]
[351855841,1738822085233,-196.93508722,0.00014246,2]
[351855842,1738822085255,-1357.53,0.00014246,2]
[351855843,1738822085281,-596.81,0.00014246,2]
[351855844,1738822085304,-500.0,0.00014246,2]
[351855845,1738822085327,-718.41,0.00014246,2]
[351855846,1738822085349,-500.0,0.00014246,2]
[351855847,1738822085371,-500.0,0.00014246,2]
[351855848,1738822085392,-500.0,0.00014246,2]
[351855849,1738822085413,-500.0,0.00014246,2]
[351855850,1738822085435,-500.0,0.00014246,2]
[351855851,1738822085455,-306.81823847,0.00014246,2]
[351855915,1738822233433,-419.67137313,0.00013561,2]
[351855916,1738822233443,-600.0,0.00013676,2]
[351855917,1738822233454,-300.0,0.00013697,2]
[351855918,1738822233464,-504.69339862,0.00013698,2]
[351855919,1738822233475,-997.12,0.00013698,2]
[351855920,1738822233484,-878.67,0.00013698,2]
[351855921,1738822233494,-700.35,0.00013698,2]
[351855922,1738822233504,-500.0,0.00013698,2]
[351855923,1738822233513,-500.0,0.00013698,2]
[351855924,1738822233523,-2843.33,0.00013698,2]
[351855925,1738822233533,-500.0,0.00013698,2]
[351855926,1738822233542,-500.0,0.00013698,2]
[351855927,1738822233552,-500.0,0.00013698,2]
[351855928,1738822233561,-2156.17,0.00013698,2]
[351855929,1738822233571,-1609.52,0.00013698,2]
[351855930,1738822233583,-500.0,0.00013698,2]
[351855931,1738822233593,-500.0,0.00013698,2]
[351855932,1738822233602,-500.0,0.00013698,2]
[351855933,1738822233612,-500.0,0.00013698,2]
[351855934,1738822233621,-500.0,0.00013698,2]
[351855935,1738822233631,-330.41889319,0.00013698,2]
[351855936,1738822233640,-29858.20535399,0.00013698,2]
[351855952,1738822238455,-7438.69753278,0.00013695,2]
[351855953,1738822238465,-34717.56464601,0.00013698,2]
[351855954,1738822238475,-2044.62,0.00013698,2]
[351855955,1738822238485,-500.0,0.00013698,2]
[351855956,1738822238495,-3492.4,0.00013698,2]
[351855957,1738822238505,-500.0,0.00013698,2]
[351855958,1738822238515,-500.0,0.00013698,2]
[351855959,1738822238525,-500.0,0.00013698,2]
[351855960,1738822238535,-3226.29,0.00013698,2]
[351855961,1738822238545,-500.0,0.00013698,2]
[351855962,1738822238555,-773.15,0.00013698,2]
[351855963,1738822238565,-2918.01,0.00013698,2]
[351855964,1738822238574,-527.56,0.00013698,2]
[351855965,1738822238585,-918.34,0.00013698,2]
[351855966,1738822238595,-22581.88,0.00013698,2]
[351855967,1738822238605,-1568.08,0.00013698,2]
[351855968,1738822238615,-530.33881304,0.00013698,2]
[351855969,1738822238626,-1919.14,0.00013698,2]
[351855970,1738822238636,-500.0,0.00013698,2]
[351855971,1738822238645,-500.0,0.00013698,2]
[351855972,1738822238655,-761.39,0.00013698,2]
[351855973,1738822238665,-500.0,0.00013698,2]
[351855974,1738822238675,-500.0,0.00013698,2]
[351855975,1738822238685,-500.0,0.00013698,2]
[351855976,1738822238695,-1726.57,0.00013698,2]
[351855977,1738822238705,-500.0,0.00013698,2]
[351855978,1738822238715,-500.0,0.00013698,2]
[351855979,1738822238724,-2363.23,0.00013698,2]
[351855980,1738822238734,-735.32,0.00013698,2]
[351855981,1738822238744,-628.28103478,0.00013698,2]
[351855982,1738822238753,-500.0,0.00013698,2]
[351855983,1738822238763,-554.61,0.00013698,2]
[351855984,1738822238773,-500.0,0.00013698,2]
[351855985,1738822238782,-672.13,0.00013698,2]
[351855986,1738822238792,-608.4,0.00013698,2]
[351855987,1738822238802,-500.0,0.00013698,2]
[351855988,1738822238812,-659.58,0.00013698,2]
[351855989,1738822238822,-6300.08,0.00013698,2]
[351855990,1738822238832,-500.0,0.00013698,2]
[351855991,1738822238842,-500.0,0.00013698,2]
[351855992,1738822238852,-864.28,0.00013698,2]
[351855993,1738822238862,-563.42,0.00013698,2]
[351855994,1738822238871,-1097.7,0.00013698,2]
[351855995,1738822238881,-535.56,0.00013698,2]
[351855996,1738822238891,-500.0,0.00013698,2]
[351855997,1738822238904,-624.42,0.00013698,2]
[351855998,1738822238913,-1837.43,0.00013698,2]
[351855999,1738822238923,-616.73,0.00013698,2]
[351856000,1738822238933,-6891.62,0.00013698,2]
[351856001,1738822238942,-500.0,0.00013698,2]
[351856002,1738822238953,-1074.71,0.00013698,2]
[351856003,1738822238963,-500.0,0.00013698,2]
[351856004,1738822238973,-500.0,0.00013698,2]
[351856005,1738822238984,-500.0,0.00013698,2]
[351856006,1738822238994,-269.43353608,0.00013698,2]
[351856007,1738822239004,-982.53,0.00013698,2]
[351856008,1738822239014,-500.0,0.00013698,2]
[351856009,1738822239023,-500.0,0.00013698,2]
[351856010,1738822239034,-500.0,0.00013698,2]
[351856011,1738822239043,-699.63,0.00013698,2]
[351856012,1738822239053,-500.0,0.00013698,2]
[351856013,1738822239063,-500.0,0.00013698,2]
[351856014,1738822239073,-500.0,0.00013698,2]
[351856015,1738822239083,-558.86,0.00013698,2]
[351856016,1738822239093,-500.0,0.00013698,2]
[351856017,1738822239103,-500.0,0.00013698,2]
[351856018,1738822239113,-500.0,0.00013698,2]
[351856019,1738822239123,-998.87,0.00013698,2]
[351856020,1738822239133,-867.27,0.00013698,2]
[351856021,1738822239143,-151.44052665,0.00013699,2]
[351856022,1738822239303,-199.95161351,0.00013735,2]
[351856023,1738822239317,-769.65789963,0.00013819,2]
[351856024,1738822239327,-300.94314428,0.00013834,2]
[351856025,1738822239337,-500.0,0.00013834,2]
[351856026,1738822239347,-500.0,0.00013834,2]
[351856027,1738822239357,-500.0,0.00013834,2]
[351856028,1738822239367,-500.0,0.00013834,2]
[351856029,1738822239378,-500.0,0.00013834,2]
[351856030,1738822239388,-500.0,0.00013834,2]
[351856031,1738822239397,-500.0,0.00013834,2]
[351856032,1738822239407,-500.0,0.00013834,2]
[351856033,1738822239416,-436.11573944,0.00013834,2]
[351856034,1738822239425,-500.0,0.00013834,2]
[351856035,1738822239435,-500.0,0.00013834,2]
[351856036,1738822239445,-500.0,0.00013834,2]
[351856037,1738822239454,-500.0,0.00013834,2]
[351856038,1738822239464,-500.0,0.00013834,2]
[351856039,1738822239473,-500.0,0.00013834,2]
[351856040,1738822239483,-500.0,0.00013834,2]
[351856041,1738822239493,-500.0,0.00013834,2]
[351856042,1738822239502,-500.0,0.00013834,2]
[351856043,1738822239512,-500.0,0.00013834,2]
[351856044,1738822239521,-500.0,0.00013834,2]
[351856045,1738822239531,-500.0,0.00013834,2]
[351856046,1738822239540,-500.0,0.00013834,2]
[351856047,1738822239550,-500.0,0.00013834,2]
[351856048,1738822239559,-500.0,0.00013834,2]
[351856049,1738822239569,-500.0,0.00013834,2]
[351856050,1738822239579,-500.0,0.00013834,2]
[351856051,1738822239588,-500.0,0.00013834,2]
[351856052,1738822239598,-500.0,0.00013834,2]
[351856053,1738822239607,-500.0,0.00013834,2]
[351856054,1738822239616,-500.0,0.00013834,2]
[351856055,1738822239625,-500.0,0.00013834,2]
[351856056,1738822239635,-500.0,0.00013834,2]
[351856057,1738822239644,-500.0,0.00013834,2]
[351856058,1738822239654,-500.0,0.00013834,2]
[351856059,1738822239663,-500.0,0.00013834,2]
[351856060,1738822239672,-500.0,0.00013834,2]
[351856061,1738822239682,-500.0,0.00013834,2]
[351856062,1738822239691,-500.0,0.00013834,2]
[351856063,1738822239700,-500.0,0.00013834,2]
[351856064,1738822239710,-500.0,0.00013834,2]
[351856065,1738822239719,-527.26029801,0.00013834,2]
[351856066,1738822239729,-500.0,0.00013834,2]
[351856067,1738822239738,-500.0,0.00013834,2]
[351856068,1738822239747,-500.0,0.00013834,2]
[351856069,1738822239756,-151.0,0.00013835,2]
[351856070,1738822239766,-151.0,0.00013835,2]
[351856071,1738822239775,-997.12,0.00013835,2]
[351856072,1738822239784,-878.67,0.00013835,2]
[351856073,1738822239794,-700.35,0.00013835,2]
[351856074,1738822239804,-500.0,0.00013835,2]
[351856075,1738822239814,-151.0,0.00013835,2]
[351856076,1738822239824,-500.0,0.00013835,2]
[351856077,1738822239833,-2843.33,0.00013835,2]
[351856078,1738822239843,-151.0,0.00013835,2]
[351856079,1738822239852,-500.0,0.00013835,2]
[351856080,1738822239862,-500.0,0.00013835,2]
[351856081,1738822239872,-500.0,0.00013835,2]
[351856082,1738822239882,-2156.17,0.00013835,2]
[351856083,1738822239891,-1609.52,0.00013835,2]
[351856084,1738822239906,-500.0,0.00013835,2]
[351856085,1738822239915,-500.0,0.00013835,2]
[351856086,1738822239925,-500.0,0.00013835,2]
[351856087,1738822239935,-500.0,0.00013835,2]
[351856088,1738822239945,-500.0,0.00013835,2]
[351856089,1738822239955,-64575.77,0.00013835,2]
[351856090,1738822239965,-2044.62,0.00013835,2]
[351856091,1738822239975,-500.0,0.00013835,2]
[351856092,1738822239986,-3492.4,0.00013835,2]
[351856093,1738822239996,-500.0,0.00013835,2]
[351856094,1738822240005,-500.0,0.00013835,2]
[351856095,1738822240018,-500.0,0.00013835,2]
[351856096,1738822240027,-3226.29,0.00013835,2]
[351856098,1738822240037,-500.0,0.00013835,2]
[351856099,1738822240047,-773.15,0.00013835,2]
[351856100,1738822240057,-2918.01,0.00013835,2]
[351856101,1738822240067,-527.56,0.00013835,2]
[351856102,1738822240075,-918.34,0.00013835,2]
[351856104,1738822240084,-22581.88,0.00013835,2]
[351856106,1738822240093,-1568.08,0.00013835,2]
[351856107,1738822240103,-1919.14,0.00013835,2]
[351856108,1738822240113,-500.0,0.00013835,2]
[351856109,1738822240123,-500.0,0.00013835,2]
[351856110,1738822240133,-761.39,0.00013835,2]
[351856112,1738822240143,-500.0,0.00013835,2]
[351856113,1738822240153,-561.44797022,0.00013835,2]
[351856114,1738822240163,-500.0,0.00013835,2]
[351856115,1738822240173,-1726.57,0.00013835,2]
[351856116,1738822240183,-500.0,0.00013835,2]
[351856117,1738822240193,-500.0,0.00013835,2]
[351856118,1738822240201,-2363.23,0.00013835,2]
[351856119,1738822240211,-735.32,0.00013835,2]
[351856120,1738822240221,-500.0,0.00013835,2]
[351856121,1738822240231,-554.61,0.00013835,2]
[351856122,1738822240241,-183.88090678,0.00013835,2]
[351856123,1738822240250,-672.13,0.00013835,2]
[351856124,1738822240260,-608.4,0.00013835,2]
[351856125,1738822240270,-500.0,0.00013835,2]
[351856126,1738822240280,-659.58,0.00013835,2]
[351856127,1738822240289,-6300.08,0.00013835,2]
[351856128,1738822240299,-500.0,0.00013835,2]
[351856129,1738822240309,-864.28,0.00013835,2]
[351856130,1738822240319,-563.42,0.00013835,2]
[351856131,1738822240329,-1097.7,0.00013835,2]
[351856132,1738822240339,-535.56,0.00013835,2]
[351856133,1738822240348,-500.0,0.00013835,2]
[351856134,1738822240358,-624.42,0.00013835,2]
[351856135,1738822240368,-1837.43,0.00013835,2]
[351856137,1738822240377,-616.73,0.00013835,2]
[351856138,1738822240386,-6891.62,0.00013835,2]
[351856139,1738822240396,-500.0,0.00013835,2]
[351856140,1738822240405,-1074.71,0.00013835,2]
[351856141,1738822240415,-500.0,0.00013835,2]
[351856142,1738822240424,-500.0,0.00013835,2]
[351856143,1738822240434,-500.0,0.00013835,2]
[351856145,1738822240443,-982.53,0.00013835,2]
[351856146,1738822240453,-500.0,0.00013835,2]
[351856148,1738822240462,-500.0,0.00013835,2]
[351856150,1738822240471,-500.0,0.00013835,2]
[351856151,1738822240481,-699.63,0.00013835,2]
[351856152,1738822240491,-500.0,0.00013835,2]
[351856153,1738822240500,-500.0,0.00013835,2]
[351856154,1738822240510,-500.0,0.00013835,2]
[351856155,1738822240519,-558.86,0.00013835,2]
[351856156,1738822240529,-500.0,0.00013835,2]
[351856157,1738822240538,-500.0,0.00013835,2]
[351856158,1738822240548,-500.0,0.00013835,2]
[351856159,1738822240558,-998.87,0.00013835,2]
[351856160,1738822240567,-867.27,0.00013835,2]
[351856161,1738822240577,-396.0,0.00013945,2]
[351856162,1738822240586,-151.0,0.00013972,2]
[351856163,1738822240597,-151.0,0.00013972,2]
[351856164,1738822240606,-151.0,0.00013972,2]
[351856165,1738822240616,-151.0,0.00013972,2]
[351856166,1738822240626,-997.12,0.00013972,2]
[351856167,1738822240635,-878.67,0.00013972,2]
[351856168,1738822240645,-700.35,0.00013972,2]
[351856169,1738822240655,-500.0,0.00013972,2]
[351856170,1738822240664,-500.0,0.00013972,2]
[351856171,1738822240674,-151.0,0.00013972,2]
[351856172,1738822240684,-2843.33,0.00013972,2]
[351856173,1738822240693,-151.0,0.00013972,2]
[351856174,1738822240702,-151.0,0.00013972,2]
[351856175,1738822240712,-151.0,0.00013972,2]
[351856176,1738822240722,-635.34008997,0.00013972,2]
[351856177,1738822240731,-500.0,0.00013972,2]
[351856178,1738822240741,-500.0,0.00013972,2]
[351856179,1738822240751,-2156.17,0.00013972,2]
[351856180,1738822240760,-1609.52,0.00013972,2]
[351856181,1738822240770,-500.0,0.00013972,2]
[351856182,1738822240781,-500.0,0.00013972,2]
[351856183,1738822240790,-500.0,0.00013972,2]
[351856184,1738822240799,-500.0,0.00013972,2]
[351856185,1738822240808,-500.0,0.00013972,2]
[351856186,1738822240817,-64575.77,0.00013972,2]
[351856187,1738822240827,-2044.62,0.00013972,2]
[351856188,1738822240836,-500.0,0.00013972,2]
[351856189,1738822240846,-3492.4,0.00013972,2]
[351856190,1738822240855,-500.0,0.00013972,2]
[351856191,1738822240864,-500.0,0.00013972,2]
[351856192,1738822240874,-500.0,0.00013972,2]
[351856193,1738822240884,-3226.29,0.00013972,2]
[351856194,1738822240893,-500.0,0.00013972,2]
[351856195,1738822240908,-773.15,0.00013972,2]
[351856196,1738822240918,-2918.01,0.00013972,2]
[351856197,1738822240928,-527.56,0.00013972,2]
[351856198,1738822240938,-918.34,0.00013972,2]
[351856199,1738822240948,-22581.88,0.00013972,2]
[351856200,1738822240958,-1568.08,0.00013972,2]
[351856201,1738822240968,-1919.14,0.00013972,2]
[351856202,1738822240979,-500.0,0.00013972,2]
[351856203,1738822240990,-500.0,0.00013972,2]
[351856204,1738822240999,-500.0,0.00013972,2]
[351856205,1738822241009,-761.39,0.00013972,2]
[351856206,1738822241023,-500.0,0.00013972,2]
[351856207,1738822241033,-1726.57,0.00013972,2]
[351856208,1738822241043,-500.0,0.00013972,2]
[351856209,1738822241053,-500.0,0.00013972,2]
[351856210,1738822241062,-2363.23,0.00013972,2]